Cogmind - Beta 16 @@@ ROGUE MODE // 2025.10.24 @ 20:44:49 Player: shapeshifter Result: Destroyed by H-66 Slayer with Gauss Rifle Performance ------------- Evolutions (4) 2000 Regions Visited (11) 2200 Robots Destroyed (93) 465 Value Destroyed (4063) 4063 Prototype IDs (26) 520 Alien Tech Used (0) 0 Bonus (3768) 3768 TOTAL SCORE: 13016 Bonus ------- High Alert Combat Kills 227 Follower Combat Kills 141 Entered Garrisons 600 Used RIF Installer 2500 Aligned with FarCom 300 Cogmind --------- Core Integrity 0/850 Matter 300/300 Energy 90/100 System Corruption 0% Temperature Cool (0) Movement Core (150) Ox2 Location -6/Factory Parts ------- > --- POWER (1) -------- (None) > --- PROPULSION (4) --- (None) > --- UTILITY (8) ------ Lightpack 2.0 Armor Integrity Analyzer > --- WEAPON (2) ------- Compact Ion Cannon > --- INVENTORY (40) --- Power Amplifier Advanced Heat Sink Improved Cooling System High-capacity Storage Unit Energy Well (350) Improved Sensor Array Core Analyzer Armor Integrity Analyzer Microactuators Actuator Array Actuator Array Actuator Array Force Booster Phase Shifter Core Shielding Experimental Weapon Shielding Experimental Weapon Shielding Experimental Weapon Shielding Shield Generator Authchip [R/Combat] Authchip [R/Combat] Authchip [R/Combat] Authchip [R/Combat] Relay Coupler [Grunt] (27) Relay Coupler [Grunt] (32) Relay Coupler [Grunt] (34) Relay Coupler [Sentry] (18) Relay Coupler [Hunter] (23) Relay Coupler [Heavy] (12) Heavy Plasma Cannon Heavy Plasma Cannon Compact Ion Cannon Compact Ion Cannon Gauss Rifle Mini Grenade Launcher Peak State ------------ > --- POWER ------------ Light Angular Momentum Engine > --- PROPULSION ------- Wheel Wheel Wheel Wheel > --- UTILITY ---------- Advanced Heat Sink Lightpack 2.0 Modified TNC Melee Analysis Suite Experimental Weapon Shielding System Shield > --- WEAPON ----------- Compact Ion Cannon Compact Ion Cannon > --- INVENTORY -------- Wheel Wheel Wheel Wheel Advanced Heat Sink High-capacity Storage Unit Energy Well Improved Sensor Array Core Analyzer Armor Integrity Analyzer Force Booster Core Shielding Core Shielding Experimental Weapon Shielding Experimental Weapon Shielding Experimental Weapon Shielding Shield Generator Authchip [R/Combat] Authchip [R/Combat] Authchip [R/Combat] Authchip [R/Combat] Authchip [R/Combat] Authchip [R/Combat] Relay Coupler [NC] Relay Coupler [Grunt] Relay Coupler [Grunt] Relay Coupler [Grunt] Relay Coupler [Sentry] Relay Coupler [Hunter] Relay Coupler [Hunter] Relay Coupler [Heavy] Trap Extractor Arc Projector Heavy Particle Gun Plasma Cannon Heavy Plasma Cannon Heavy Plasma Cannon Compact Ion Cannon Mini Grenade Launcher Mini Grenade Launcher [Rating: 88] Favorites ----------- Power Micro Nuclear Core Engine Light Ion Engine Power Core Micro Nuclear Core Propulsion Improved Treads Treads Improved Treads Leg Aluminum Leg Wheel Wheel Hover Unit Gravmag System Flight Unit VTOL Module Utility Large Storage Unit Device Improved Heat Sink Storage Large Storage Unit Processor Melee Analysis Suite Hackware Relay Coupler [Swarmer] Protection Core Shielding Weapon Light Assault Rifle Energy Gun Heavy Particle Gun Energy Cannon Heavy Particle Cannon Ballistic Gun Light Assault Rifle Launcher Grenade Launcher Special Weapon Remote Datajack Impact Weapon Power Maul Slashing Weapon Longsword +1 Build | -11 -10 -10 -10 -9 -8 -8 -8 -8 -7 -7 -6 ------- Run | Yrd Mat Min Exi Min Mat Gar Mat Gar Fac Gar Fac Slots Evolved 8 | . . . . . 4 . . . 2 . 2 Power . | . . . . . . . . . . . . Propulsion 2 | . . . . . . . . . 1 . 1 Utility 6 | . . . . . 4 . . . 1 . 1 Weapon . | . . . . . . . . . . . . Parts Attached 90 | 7 3 . 3 1 5 15 7 14 6 9 20 Power 9 | 1 1 . . . 1 1 . 3 . 1 1 Engine 3 | 1 1 . . . . . . 1 . . . Core 6 | . . . . . 1 1 . 2 . 1 1 Reactor . | . . . . . . . . . . . . Propulsion 27 | 2 1 . 1 . 1 2 1 4 2 5 8 Treads 8 | 2 1 . 1 . 1 2 1 . . . . Leg 1 | . . . . . . . . 1 . . . Wheel 8 | . . . . . . . . . . . 8 Hover 7 | . . . . . . . . 3 2 2 . Flight 3 | . . . . . . . . . . 3 . Utility 35 | 2 1 . 1 . 1 9 5 5 2 3 6 Device 12 | 1 . . . . . 3 3 1 . 1 3 Storage 4 | 1 1 . 1 . . . . 1 . . . Processor 5 | . . . . . 1 . . 2 1 . 1 Hackware 6 | . . . . . . 4 . 1 . 1 . Protection 8 | . . . . . . 2 2 . 1 1 2 Artifact . | . . . . . . . . . . . . Weapon 19 | 2 . . 1 1 2 3 1 2 2 . 5 Energy Gun 5 | 1 . . . . 2 . . 2 . . . Energy Cannon 5 | . . . . . . 1 . . . . 4 Ballistic Gun 3 | 1 . . 1 . . . 1 . . . . Ballistic Cannon . | . . . . . . . . . . . . Launcher 2 | . . . . . . 1 . . . . 1 Special Weapon 1 | . . . . . . 1 . . . . . Impact Weapon 1 | . . . . . . . . . 1 . . Slashing Weapon 2 | . . . . 1 . . . . 1 . . Piercing Weapon . | . . . . . . . . . . . . Special Melee Weapon . | . . . . . . . . . . . . Unidentified Prototypes 3 | . . . . . 1 . . . . . 2 Parts Lost 42 | . 2 . . 2 . 3 2 8 . 8 17 Power 6 | . 1 . . 1 . . . 1 . 1 2 Propulsion 17 | . . . . . . 1 . 2 . 5 9 Utility 11 | . 1 . . . . 1 1 3 . . 5 Weapon 8 | . . . . 1 . 1 1 2 . 2 1 Highest Loss Streak 9 | . 1 . . 2 . 2 1 5 . 4 9 To Critical Strikes . | . . . . . . . . . . . . Average Backups 14 | 3 7 8 11 12 12 12 12 13 23 31 34 Power 1 | . . . 2 2 1 1 1 . 1 1 . Propulsion 3 | 1 5 7 6 6 4 2 . . 1 1 1 Utility 7 | . . . 1 3 3 5 6 8 16 23 26 Weapon 3 | . 1 1 1 1 3 3 3 2 4 5 6 Tool/Special . | . . . . . . . . . . . . Unused Backups 61 | . 3 . 1 . 6 4 2 1 2 4 38 Power 4 | . . . 1 . 2 1 . . . . . Propulsion 9 | . 2 . . . 4 2 . . . . 1 Utility 39 | . . . . . . 1 2 1 1 3 31 Weapon 8 | . 1 . . . . . . . . 1 6 Tool/Special 1 | . . . . . . . . . 1 . . Average Slot Usage (%) 86 | . 98 85 85 73 63 92 98 90 77 75 73 Engine 4 | . 13 14 14 8 . . . . . . 2 Core 5 | . . . . . 8 9 9 8 7 5 1 Treads 17 | . 28 28 28 28 18 17 18 11 . . . Wheel 1 | . . . . . . . . . . . 18 Hover 1 | . . . . . . . . 4 21 13 . Device 7 | . 13 . . . . 11 11 9 2 4 5 Storage 10 | . 14 14 14 14 9 9 9 9 7 7 6 Processor 6 | . . . . . 2 9 9 11 19 15 12 Hackware 2 | . . . . . . 5 2 4 . 1 2 Protection 8 | . . . . . 8 11 21 14 6 7 8 Energy Gun 8 | . 14 14 6 . 17 6 9 9 2 . . Energy Cannon 2 | . . . . . . 8 . . . . 11 Ballistic Gun 7 | . 14 14 22 22 . . 6 3 . . . Slashing Weapon 1 | . . . . . . . 2 2 8 12 . Peak Build Rating 88 | 7 9 8 17 19 20 41 41 70 80 84 88 Average Rating 32 | 5 8 8 12 15 17 31 37 45 75 75 76 On Entrance 29 | . 7 8 8 17 12 20 40 38 66 80 57 Avg Prop Armor Cover (%) 4 | . . . . . . . . 4 . . . Naked Turns . | . . . . . . . . . . . . Heaviest Build 58 | 12 27 26 26 26 28 58 41 44 20 23 36 Greatest Support 46 | 40 43 43 46 46 46 46 43 40 27 27 40 Greatest Overweight (x) 8 | . . . . . . 1 . 2 3 2 8 Average Overweight (x) . | . . . . . . . . . . . . Largest Inventory Capacity 40 | 8 15 15 20 15 15 20 15 40 40 40 40 Average Capacity 19 | 7 14 15 15 15 15 15 15 21 40 40 40 Most Carried 40 | 5 12 9 15 15 15 17 15 17 28 36 40 Average Carried 15 | 3 8 8 12 14 14 14 14 14 23 31 34 Final Capacity 40 | 8 15 15 15 15 15 15 15 40 40 40 40 Final Carried 35 | 4 8 9 15 15 15 15 13 16 28 30 35 Class Distribution -------------------- 58% | Mutant 13% | Scavenger-Mutant 11% | Hauler-Mutant 11% | Bothacker-Mutant Dominant Class ---------------- Mutant | -10/Materials Mutant | -10/Mines Mutant | -10/Exiles Mutant | -9/Mines Mutant | -8/Materials Scavenger-Mutant | -8/Garrison Mutant | -8/Materials Bothacker-Mutant | -8/Garrison Hauler-Mutant | -7/Factory Hauler-Gladiator | -7/Garrison Hauler-Mutant | -6/Factory Resources | -11 -10 -10 -10 -9 -8 -8 -8 -8 -7 -7 -6 ----------- Run | Yrd Mat Min Exi Min Mat Gar Mat Gar Fac Gar Fac Matter Collected 1826 | 275 87 3 . 111 . 365 144 400 138 132 171 Remotely . | . . . . . . . . . . . . Salvage Created 3434 | 128 555 . . 159 . 702 303 518 158 305 606 Parts 191 | 7 35 . . 7 . 40 15 39 7 14 27 Haulers Intercepted 3 | . . . . . . . . . 2 . 1 Recyclers Shooed . | . . . . . . . . . . . . Parts Field Recycled . | . . . . . . . . . . . . Retrieved Matter . | . . . . . . . . . . . . Parts Self-Destructed . | . . . . . . . . . . . . Prevented . | . . . . . . . . . . . . Parts Restored . | . . . . . . . . . . . . Kills | -11 -10 -10 -10 -9 -8 -8 -8 -8 -7 -7 -6 ------- Run | Yrd Mat Min Exi Min Mat Gar Mat Gar Fac Gar Fac Combat Hostiles Destroyed 79 | . 15 . . 4 . 21 5 17 1 7 9 Melee 15 | . . . . 2 . . . 5 1 7 . Guns 32 | . 14 . . 2 . 1 5 10 . . . Cannons 19 | . . . . . . 13 . . . . 6 AOE 9 | . . . . . . 6 . 2 . . 1 Classes Destroyed 14 | 2 3 . . 1 . 3 1 1 2 . 1 Worker 1 | . . . . . . . . . 1 . . Tunneler 2 | 2 . . . . . . . . . . . Hauler 3 | . . . . . . . . . 2 . 1 Recycler 1 | 1 . . . . . . . . . . . Watcher 7 | . 3 . . . . . 1 . . . 3 Swarmer 29 | . 6 . . . . 11 . 6 . 3 3 Saboteur 1 | . . . . . . . . . . . 1 Grunt 22 | . 9 . . 3 . 4 . 3 . 2 1 Brawler 1 | . . . . . . 1 . . . . . Duelist 2 | . . . . 1 . . . . . 1 . Sentry 7 | . . . . . . 2 3 . . 1 1 Specialist 3 | . . . . . . . . 3 . . . Hunter 5 | . . . . . . . 2 . . . 3 Programmer 9 | . . . . . . 3 . 5 1 . . Best Kill Streak 7 | 2 3 . . 2 . 7 2 3 2 6 3 Combat Bots Only 7 | . 3 . . 2 . 7 2 3 1 6 3 Max Kills in Single Turn 2 | 1 1 . . 1 . 2 1 1 1 1 1 Gunslinging . | . . . . . . . . . . . . Exploded 2 | . . . . . . 2 . 1 . . 1 Melee 1 | . . . . 1 . . . 1 1 1 . Uniques/NPCs Destroyed . | . . . . . . . . . . . . Combat | -11 -10 -10 -10 -9 -8 -8 -8 -8 -7 -7 -6 -------- Run | Yrd Mat Min Exi Min Mat Gar Mat Gar Fac Gar Fac Hostile Shots Fired 682 | . 76 . . 26 . 97 30 174 21 70 188 Missed 218 | . 22 . . 9 . 26 9 60 15 21 56 Hits 464 | . 54 . . 17 . 71 21 114 6 49 132 Melee 6 | . . . . 3 . . . . . 3 . Projectile 458 | . 54 . . 14 . 71 21 114 6 46 132 Critical Strikes 8 | . 1 . . . . 3 1 2 1 . . Actively Blocked 1 | . . . . . . 1 . . . . . Part Disruptions 1 | . . . . . . . . 1 . . . Damage Taken 6799 | . 551 . . 267 . 930 318 1599 77 650 2407 Core 1697 | . 135 . . 42 . 206 34 261 22 132 865 Absorbed by Shields . | . . . . . . . . . . . . Redirected to Shielding 264 | . . . . . . 17 6 12 4 28 197 Core Remaining (%) 53 | 100 . . . 29 . . . 8 . 78 . Volleys Fired 285 | 15 58 . . 11 8 68 29 61 . . 35 Largest 2 | 2 2 . . 2 2 2 2 2 . . 2 Hottest 180 | 70 70 . . 44 60 130 130 110 . . 180 Shots Fired 477 | 30 115 . . 21 16 90 46 95 . . 64 Gun 339 | 30 115 . . 21 16 19 45 93 . . . Cannon 119 | . . . . . . 57 1 . . . 61 Launcher 13 | . . . . . . 8 . 2 . . 3 Special 6 | . . . . . . 6 . . . . . Kinetic 138 | 15 58 . . 21 . . 16 28 . . . Thermal 302 | 15 57 . . . 16 76 30 47 . . 61 Explosive 13 | . . . . . . 8 . 2 . . 3 Electromagnetic 18 | . . . . . . . . 18 . . . Robot Hit Streak 11 | 8 8 . . 7 4 11 7 7 . . 10 Robot Miss Streak 10 | 2 4 . . 5 3 2 3 6 . . 10 Penetration Max . | . . . . . . . . . . . . Secondary Targets 4 | . 1 . . . . . . 3 . . . Max Gunslinging Chain 1 | . 1 . . . . . . 1 . . . Shots Hit Robots 312 | 22 70 . . 21 8 55 29 46 5 20 36 Core Hits 159 | 6 32 . . 11 2 25 11 25 2 7 38 Critical Kills 2 | . . . . . . . . . . . 2 Critical Parts Destroyed 1 | . 1 . . . . . . . . . . Critical Strikes 14 | . 5 . . 1 . 2 . 3 . 1 2 Burn 7 | . 4 . . . . 1 . 2 . . . Meltdown 2 | . . . . . . . . . . . 2 Destroy 1 | . 1 . . . . . . . . . . Sever 4 | . . . . 1 . 1 . 1 . 1 . Melee Attacks 73 | . . . . 5 . 9 . 21 6 32 . Impact . | . . . . . . . . . . . . Slashing 73 | . . . . 5 . 9 . 21 6 32 . Piercing . | . . . . . . . . . . . . Sneak Attacks 3 | . . . . . . . . . 3 . . Combat Hostiles . | . . . . . . . . . . . . Follow-up Attacks 2 | . . . . . . . . . . 2 . Damage Inflicted 8530 | 229 726 . . 407 69 2111 538 1281 400 975 1794 Guns 2703 | 229 726 . . 198 69 304 513 664 . . . Cannons 1908 | . . . . . . 854 25 . . . 1029 Explosions 1332 | . . . . . . 393 . 176 . . 763 Melee 2581 | . . . . 209 . 556 . 441 400 975 . Ramming 6 | . . . . . . 4 . . . . 2 Kinetic 929 | 103 298 . . 198 . . 164 166 . . . Thermal 3628 | 126 428 . . . 69 1158 374 444 . . 1029 Explosive 1332 | . . . . . . 393 . 176 . . 763 Electromagnetic 54 | . . . . . . . . 54 . . . Impact . | . . . . . . . . . . . . Slashing 2581 | . . . . 209 . 556 . 441 400 975 . Piercing . | . . . . . . . . . . . . Highest Corruption 8 | . . . . . . 1 1 8 1 1 . Average Corruption 1 | . . . . . . 1 1 7 1 1 . Corruption Purged 1 | . . . . . . . 1 . . . . Corruption Blocked . | . . . . . . . . . . . . Effects 19 | . . . . . . 4 1 8 2 4 . Message Errors 5 | . . . . . . . 1 1 . 3 . Matter Fused 7 | . . . . . . 2 . 2 2 1 . Heat Flow Errors 1 | . . . . . . . . 1 . . . Energy Discharges 3 | . . . . . . 1 . 2 . . . Data Loss (minor) 2 | . . . . . . 1 . 1 . . . Weapon Failures 1 | . . . . . . . . 1 . . . Overload Shots . | . . . . . . . . . . . . Overflow Damage 420 | . . . . . . 167 . 62 85 96 10 Projectiles 67 | . . . . . . 57 . . . . 10 Explosions 6 | . . . . . . 6 . . . . . Melee 347 | . . . . . . 104 . 62 85 96 . Knockbacks . | . . . . . . . . . . . . Impact . | . . . . . . . . . . . . Kinetic . | . . . . . . . . . . . . Secondary . | . . . . . . . . . . . . Self-Inflicted Damage 66 | . . . . . . 65 . . . . 1 Shots 2 | . . . . . . 2 . . . . . Rammed 5 | . . . . . . 3 . . . . 2 Targets Rammed 5 | . . . . . . 3 . . . . 2 Kicked . | . . . . . . . . . . . . Crushed . | . . . . . . . . . . . . Highest Temperature 279 | 70 261 . . 19 . 195 107 229 9 . 279 Average Temperature 64 | 29 66 . . 7 . 60 23 74 9 . 89 Received Heat Transfer 1113 | . 207 . . 93 . 207 81 198 39 183 105 Siege Activations . | . . . . . . . . . . . . Martial Activations . | . . . . . . . . . . . . Shielding Activations . | . . . . . . . . . . . . Robots Disrupted . | . . . . . . . . . . . . Combat Hostiles . | . . . . . . . . . . . . Robots Corrupted . | . . . . . . . . . . . . Combat Hostiles . | . . . . . . . . . . . . Parts Fried . | . . . . . . . . . . . . Impact Corruptions . | . . . . . . . . . . . . Robots Melted 4 | . 1 . . . . 1 . . . . 2 Combat Hostiles 4 | . 1 . . . . 1 . . . . 2 Parts Melted 11 | 1 1 . . . . 2 . . . . 7 Heat Transferred 7096 | 370 1554 . . . 296 1776 703 962 . . 1435 Parts Sabotaged . | . . . . . . . . . . . . Parts Stolen . | . . . . . . . . . . . . Parts Stripped . | . . . . . . . . . . . . Power Chain Reactions . | . . . . . . . . . . . . Alert | -11 -10 -10 -10 -9 -8 -8 -8 -8 -7 -7 -6 ------- Run | Yrd Mat Min Exi Min Mat Gar Mat Gar Fac Gar Fac Maximum Alert Level 3 | . . . . . . 3 2 2 1 1 . Low Security (%) 52 | 100 100 100 . 100 100 19 . 3 . 50 100 Level 1 29 | . . . . . . 31 81 44 100 49 . Level 2 10 | . . . . . . 8 18 52 . . . Level 3 7 | . . . . . . 40 . . . . . Level 4 . | . . . . . . . . . . . . Level 5 . | . . . . . . . . . . . . High Security . | . . . . . . . . . . . . Max Security . | . . . . . . . . . . . . Peak Influence 1011 | 5 128 37 . 50 6 1011 492 615 322 304 150 Initial 492 | . . 37 . . . . 492 151 322 172 150 Average 235 | . 78 3 . 9 . 522 351 410 279 223 67 Influence Increases 3096 | 15 518 6 . 104 6 1101 201 554 65 195 331 Destroy 0b10 Robot/C 1660 | . 300 . . 80 . 480 100 340 20 160 180 Destroy 0b10 Robot/NC 85 | 15 15 . . . . 15 5 . 15 . 20 Destroy Leader 290 | . 76 . . 20 . 40 52 30 14 20 38 Allied During Kill 25 | . . . . . . 12 . . . 6 7 Trap Triggered on 0b10 40 | . . . . . . . . 40 . . . Successful Hack 120 | . 20 6 . 4 6 14 44 12 . . 14 Select Force Hacks 60 | . 60 . . . . . . . . . . Disable Machine 90 | . . . . . . 45 . . . . 45 Anti-Garrison Action 350 | . . . . . . 300 . 50 . . . Destroy Structure 211 | . 2 . . . . 105 . 67 1 9 27 Lose Combat Pursuer 165 | . 45 . . . . 90 . 15 15 . . Influence Decreases 3096 | 15 420 104 . 104 6 90 979 172 433 155 618 Entered New Map 1167 | . . 61 . . . . 519 82 293 75 137 Time Decay 1450 | 15 400 43 . 104 6 . 440 . 140 . 302 Lost Part 389 | . 20 . . . . 30 20 80 . 80 159 Lost Ally 90 | . . . . . . 60 . 10 . . 20 Squads Dispatched 6 | . 3 . . . . . 1 . 1 . 1 Investigation 2 | . 2 . . . . . . . . . . Extermination . | . . . . . . . . . . . . Reinforcement 3 | . 1 . . . . . . . 1 . 1 Assault . | . . . . . . . . . . . . Garrison 1 | . . . . . . . 1 . . . . Intercept . | . . . . . . . . . . . . Searches Triggered . | . . . . . . . . . . . . Construction Impeded . | . . . . . . . . . . . . Haulers Reinforced 1 | . . . . . . . . . . . 1 Active Scanning Responses . | . . . . . . . . . . . . Cargo Convoy Interrupts 1 | . . . . . . . . . . . 1 Stealth | -11 -10 -10 -10 -9 -8 -8 -8 -8 -7 -7 -6 --------- Run | Yrd Mat Min Exi Min Mat Gar Mat Gar Fac Gar Fac Distress Signals 3 | . 1 . . . . . 1 . . . 1 Communications Jammed . | . . . . . . . . . . . . Distress Signals . | . . . . . . . . . . . . Times Spotted 124 | . 22 . . 4 4 24 8 22 6 8 26 Peak Tracking Total 12 | . 3 . . 2 2 7 2 6 4 4 12 Tactical Retreats 8 | . 3 . . . . 3 . 1 1 . . Traps | -11 -10 -10 -10 -9 -8 -8 -8 -8 -7 -7 -6 ------- Run | Yrd Mat Min Exi Min Mat Gar Mat Gar Fac Gar Fac Traps Triggered 6 | . . . . . . 1 . 2 2 . 1 Indirectly . | . . . . . . . . . . . . Trap Hack Attempts . | . . . . . . . . . . . . Triggered . | . . . . . . . . . . . . Disarmed . | . . . . . . . . . . . . Reprogrammed . | . . . . . . . . . . . . Reused 4 | . . . . . . . . 4 . . . Traps Extracted 1 | . . . . . . . . 1 . . . Installed 5 | . . . . . . . . 5 . . . Triggered 4 | . . . . . . . . 4 . . . Most Traps Carried 4 | . . . . . . 4 4 4 . . . Machines | -11 -10 -10 -10 -9 -8 -8 -8 -8 -7 -7 -6 ---------- Run | Yrd Mat Min Exi Min Mat Gar Mat Gar Fac Gar Fac Machines Disabled 12 | . . . . . . 8 . 1 . . 3 Max in Single Turn 2 | . . . . . . 2 . 1 . . 1 Garrison Relay 4 | . . . . . . 3 . 1 . . . Phase Generator 1 | . . . . . . 1 . . . . . Machines Repaired . | . . . . . . . . . . . . Machines Dismantled . | . . . . . . . . . . . . Machines Sabotaged . | . . . . . . . . . . . . Overloaded Fab Kills . | . . . . . . . . . . . . Hacking | -11 -10 -10 -10 -9 -8 -8 -8 -8 -7 -7 -6 --------- Run | Yrd Mat Min Exi Min Mat Gar Mat Gar Fac Gar Fac Machines Accessed 32 | . 7 1 2 1 3 2 8 1 4 1 2 Terminals 20 | . 5 1 . 1 1 2 6 1 . 1 2 Fabricators 1 | . . . . . . . . . 1 . . Repair Stations 2 | . . . . . 1 . . . 1 . . Recycling Units 2 | . 2 . . . . . . . . . . Scanalyzers 2 | . . . . . . . 1 . 1 . . Garrison Access 3 | . . . . . 1 . 1 . 1 . . Total Hacks 76 | . 24 3 2 4 4 3 25 1 6 1 3 Successful 48 | . 16 2 2 2 2 1 18 1 2 1 1 Failed 28 | . 8 1 . 2 2 2 7 . 4 . 2 Catastrophic 6 | . 1 . . . 1 . . . 2 . 2 Database Lockouts . | . . . . . . . . . . . . Manual 52 | . 20 3 1 4 . . 22 . . . 2 Terminals 57 | . 19 3 . 4 1 3 22 1 . 1 3 Fabricators 1 | . . . . . . . . . 1 . . Repair Stations 5 | . . . . . 2 . . . 3 . . Recycling Units 5 | . 5 . . . . . . . . . . Scanalyzers 3 | . . . . . . . 2 . 1 . . Garrison Access 3 | . . . . . 1 . 1 . 1 . . Terminal Hacks 15 | . 3 2 2 . . 1 5 1 . 1 . Record 1 | . . . 1 . . . . . . . . Open Door 1 | . . . . . . . . . . 1 . Emergency Access Points 1 | . . . . . . . . 1 . . . Terminal Index 2 | . . 1 . . . . 1 . . . . Garrison Index 1 | . . . . . . . 1 . . . . Registered Components 2 | . 1 . . . . . 1 . . . . Zone Layout 5 | . 2 1 . . . . 2 . . . . Garrison Registry 1 | . . . . . . 1 . . . . . Proto ID Catalog 1 | . . . 1 . . . . . . . . Fabricator Hacks 1 | . . . . . . . . . 1 . . Network Status 1 | . . . . . . . . . 1 . . Repair Station Hacks 1 | . . . . . 1 . . . . . . Refit 1 | . . . . . 1 . . . . . . Recycling Unit Hacks 2 | . 2 . . . . . . . . . . Retrieve Components 2 | . 2 . . . . . . . . . . Scanalyzer 2 | . . . . . . . 2 . . . . Insert Component 1 | . . . . . . . 1 . . . . Analyze 1 | . . . . . . . 1 . . . . Garrison Access Hacks 3 | . . . . . 1 . 1 . 1 . . Unlock Access 3 | . . . . . 1 . 1 . 1 . . Unauthorized Hacks 24 | . 11 . . 2 . . 10 . . . 1 Terminals 22 | . 9 . . 2 . . 10 . . . 1 Assimilate 2 | . . . . . . . 2 . . . . Botnet 8 | . 4 . . 1 . . 3 . . . . Skim 12 | . 5 . . 1 . . 5 . . . 1 Fabricators . | . . . . . . . . . . . . Repair Stations . | . . . . . . . . . . . . Recycling Units 2 | . 2 . . . . . . . . . . Tunnel 2 | . 2 . . . . . . . . . . Scanalyzers . | . . . . . . . . . . . . Garrison Access . | . . . . . . . . . . . . Data Cores Recovered . | . . . . . . . . . . . . Used . | . . . . . . . . . . . . Hacking Detections 25 | . 6 1 . 1 2 1 8 1 3 . 2 Full Trace Events . | . . . . . . . . . . . . Feedback Events . | . . . . . . . . . . . . Feedback Blocked . | . . . . . . . . . . . . Robot Schematics Acquired . | . . . . . . . . . . . . Robots Built . | . . . . . . . . . . . . Authchips . | . . . . . . . . . . . . Time . | . . . . . . . . . . . . Total Robot Build Rating . | . . . . . . . . . . . . Part Schematics Acquired 1 | . . . . . . . 1 . . . . Parts Built . | . . . . . . . . . . . . Authchips . | . . . . . . . . . . . . Time . | . . . . . . . . . . . . Total Part Build Rating . | . . . . . . . . . . . . Part Studies Acquired . | . . . . . . . . . . . . Parts Repaired . | . . . . . . . . . . . . Time . | . . . . . . . . . . . . Parts Recycled . | . . . . . . . . . . . . Recycled Matter . | . . . . . . . . . . . . Retrieved Matter . | . . . . . . . . . . . . Retrieved Components 10 | . 10 . . . . . . . . . . Parts Scanalyzed 1 | . . . . . . . 1 . . . . Part Schematics Acquired 1 | . . . . . . . 1 . . . . Parts Damaged . | . . . . . . . . . . . . Bothacking | -11 -10 -10 -10 -9 -8 -8 -8 -8 -7 -7 -6 ------------ Run | Yrd Mat Min Exi Min Mat Gar Mat Gar Fac Gar Fac Used RIF Installer 5 | . . . . . . 1 . 2 . 2 . Signal Jammer 1 | . . . . . . . . . . 1 . Zone Cloak 1 | . . . . . . . . . . 1 . Patrol Navigation 1 | . . . . . . . . 1 . . . Program Shield 1 | . . . . . . . . 1 . . . Robots Hacked 3 | . . . . . . 3 . . . . . Non-combat . | . . . . . . . . . . . . Combat 3 | . . . . . . 3 . . . . . Robot Hacks Applied 3 | . . . . . . 3 . . . . . disrupt_area 1 | . . . . . . 1 . . . . . amplify_resonance 1 | . . . . . . 1 . . . . . formatsys_high 1 | . . . . . . 1 . . . . . Relay Couplers Released 17 | . . . . . . 13 . 4 . . . Machine Destruction 17 | . . . . . . 13 . 4 . . . Attached 4 | . . . . . . 4 . . . . . Fabnet Peak Effective % . | . . . . . . . . . . . . Robots Rewired 3 | . . . . . . 3 . . . . . Allies Hacked 1 | . . . . . . 1 . . . . . Hacks Repelled . | . . . . . . . . . . . . Allies | -11 -10 -10 -10 -9 -8 -8 -8 -8 -7 -7 -6 -------- Run | Yrd Mat Min Exi Min Mat Gar Mat Gar Fac Gar Fac Total Allies 21 | . . 2 . . . 4 1 . . 2 12 Largest Group 4 | . . 2 2 . . 3 1 1 . 2 4 Highest-Rated Group 90 | . . 45 45 . . 54 10 10 . 51 90 Highest-Rated Ally 31 | . . 31 31 . . 18 10 10 . 31 31 Total Orders . | . . . . . . . . . . . . Ally Attacks 23 | . . . . . . 11 . . . 8 4 Total Damage 438 | . . . . . . 249 . . . 147 42 Kills 5 | . . . . . . 3 . . . 1 1 Allies Corrupted 1 | . . . . . . 1 . . . . . Allies Melted . | . . . . . . . . . . . . Intel | -11 -10 -10 -10 -9 -8 -8 -8 -8 -7 -7 -6 ------- Run | Yrd Mat Min Exi Min Mat Gar Mat Gar Fac Gar Fac Active Infowar (turns) 2303 | 15 927 . . . . . 1 233 295 285 547 Optics 153 | . . . . . . . . . 153 . . IFF 109 | . . . . . . . . . . . 109 Terrain 1 | . . . . . . . 1 . . . . Seismic 942 | 15 927 . . . . . . . . . . T.N.C. 1245 | . . . . . . . . 233 295 285 432 ECM 87 | . . . . . . . . . . . 87 Robot Analysis Total . | . . . . . . . . . . . . Derelict Logs Recovered 1 | . . 1 . . . . . . . . . Drone Launches . | . . . . . . . . . . . . Drone Recoveries . | . . . . . . . . . . . . Exploration | -11 -10 -10 -10 -9 -8 -8 -8 -8 -7 -7 -6 ------------- Run | Yrd Mat Min Exi Min Mat Gar Mat Gar Fac Gar Fac Turns Passed 8039 | 212 995 554 549 513 559 1355 1093 963 295 285 666 Spaces Moved 4412 | 107 409 333 334 249 246 600 458 491 424 237 524 Core 29 | 16 . . . . . . . . 3 . 10 Treads 2983 | 91 409 333 334 249 246 600 458 263 . . . Legs . | . . . . . . . . . . . . Wheels 480 | . . . . . . . . . . . 480 Hover 814 | . . . . . . . . 228 421 165 . Flight 106 | . . . . . . . . . . 72 34 Fastest Speed 32 | 50 160 160 160 160 160 160 165 56 52 32 32 Average Speed 134 | 143 160 160 160 160 160 172 165 135 53 57 85 Slowest Speed 515 | 160 160 160 160 160 160 245 170 250 200 180 515 Overloaded Moves . | . . . . . . . . . . . . Propulsion Burnouts . | . . . . . . . . . . . . Robots Hopped . | . . . . . . . . . . . . Potential Cave-ins 6 | . . . . . . . . 6 . . . Cave-ins Triggered . | . . . . . . . . . . . . Exploration Rate (%) 42 | 7 80 78 68 49 15 73 31 37 15 44 14 Regions Visited 11 Branch Regions 3 Pre-discovered Areas 5 | . 3 . 1 . . . 1 . . . . Known Exits Taken 5 | . . 1 . 1 1 . 1 . 1 . . Unknown Exits Taken 3 | 1 1 . 1 . . . . . . . . Scrap Searched 2 | . . 1 . 1 . . . . . . . Spaces Dug 40 | . . . . . . 27 . 7 1 4 1 Terrain Destroyed 165 | . . . . . . 120 . 15 1 4 25 Melee 8 | . . . . . . . . 3 1 4 . Projectile 23 | . . . . . . 1 . 6 . . 16 AOE 134 | . . . . . . 119 . 6 . . 9 Terrain Rammed . | . . . . . . . . . . . . Walls Destroyed . | . . . . . . . . . . . . Machines Disabled . | . . . . . . . . . . . . Actions | -11 -10 -10 -10 -9 -8 -8 -8 -8 -7 -7 -6 --------- Run | Yrd Mat Min Exi Min Mat Gar Mat Gar Fac Gar Fac Total 6004 | 139 648 354 348 340 398 823 751 676 489 358 680 Wait 813 | . 164 21 . 74 124 40 244 39 12 64 31 Move 4401 | 106 408 332 333 248 245 599 457 489 424 236 524 Hop . | . . . . . . . . . . . . Pick Up 152 | 11 10 1 7 . 7 18 4 16 26 14 38 Fast Attach 13 | . . . . . 1 3 4 5 . . . Attach 62 | 7 1 . . 1 . 6 2 9 13 8 15 Detach 8 | . . . . 1 . . . 2 3 2 . Swap 53 | . 2 . 5 . 4 14 3 14 2 2 7 Drop 70 | . 5 . 3 . 9 14 8 11 3 4 13 Fire 285 | 15 58 . . 11 8 68 29 61 . . 35 Melee 69 | . . . . 5 . 9 . 21 6 28 . Ram 2 | . . . . . . . . . . . 2 Kick . | . . . . . . . . . . . . Crush 3 | . . . . . . 3 . . . . . Escape Stasis 19 | . . . . . . . . 4 . . 15 Rewire 49 | . . . . . . 49 . . . . . Trap 5 | . . . . . . . . 5 . . . Miscellaneous . | . . . . . . . . . . . . Route ------- -11/Scrapyard -10/Materials (discovered 5 exits: *Mat x3 / *Min x2) -10/Mines (discovered 4 exits: *Mat x2 / *Exi / *Sub) -10/Exiles -9/Mines (discovered 2 exits: *Mat x2) -8/Materials (discovered 2 exits: Fac / Gar) -8/Garrison (discovered 3 exits: *Mat x3) -8/Materials (discovered 4 exits: *Fac x2 / Sto / Gar) -8/Garrison (discovered 2 exits: *Fac / [*Mat]) -7/Factory (discovered 3 exits: Low x2 / Gar) -7/Garrison -6/Factory (discovered 3 exits: Low x2 / *Ext) History --------- Turn | Location | Event 4 | -11/Scrapyard | Discovered new exit (range 14) 213 | -11/Scrapyard | Entered Materials 314 | -10/Materials | Build established: Mutant 414 | -10/Materials | Discovered new exit (range 13) 663 | -10/Materials | Discovered new exit (range 7) 896 | -10/Materials | Discovered new exit (range 6) 937 | -10/Materials | Discovered new exit (range 13) 1015 | -10/Materials | Learned location of 2 exits from Subcaves 1095 | -10/Materials | Learned location of 2 exits from Mines 1120 | -10/Materials | Learned location of 2 exits from Subcaves 1137 | -10/Materials | Learned location of 2 exits from Mines 1137 | -10/Materials | Core integrity fell below 50% 1144 | -10/Materials | Identified exit to Materials 1162 | -10/Materials | Learned location of 2 exits from Mines 1208 | -10/Materials | Entered Mines 1209 | -10/Mines | Identified exit to Exiles 1209 | -10/Mines | Identified exit to Subcaves 1344 | -10/Mines | A weapon hastily lodged in a ceiling crevice suddenly fell to the ground 1651 | -10/Mines | Learned location of 1 exit from Materials 1738 | -10/Mines | Deemed a non-threat by the Exiles lab entrance 1762 | -10/Mines | Entered Exiles 1762 | -10/Exiles | Accompanied by 2 allies 1792 | -10/Exiles | Led the pair of lost Derelicts to a safe place 1825 | -10/Exiles | Met 8R-AWN 1850 | -10/Exiles | Met EX-HEX 1919 | -10/Exiles | Met EX-DEC 1945 | -10/Exiles | Learned location of Zion (-7) 2077 | -10/Exiles | Met EX-BIN 2099 | -10/Exiles | Aligned with FarCom system 2101 | -10/Exiles | Given EX-Vault access code 2138 | -10/Exiles | Opened EX-Vault 2147 | -10/Exiles | Found Modified TNC 2156 | -10/Exiles | Found Longsword +1 2165 | -10/Exiles | Found Lightpack 2.0 2196 | -10/Exiles | Warned to stay clear of 0b10 Research branches 2210 | -10/Exiles | Exiles lab attacked by MAIN.C 2294 | -10/Exiles | Discovered new exit (range 14) 2311 | -10/Exiles | Stole three prototypes: Lightpack 2.0, Modified TNC, Longsword +1 2311 | -10/Exiles | Entered Mines 2312 | -9/Mines | Identified exit to Materials 2396 | -9/Mines | Found a Scrap Suit stashed away for nefarious purposes 2725 | -9/Mines | Assembled infested the area 2824 | -9/Mines | Entered Materials 2824 | -8/Materials | Evolved 4 slots: Utility x4 2825 | -8/Materials | Identified exit to Factory 2990 | -8/Materials | Identified exit to Garrison 3383 | -8/Materials | Entered Garrison 3414 | -8/Garrison | Installed Relay Interface Framework 3427 | -8/Garrison | Triggered checkpoint 3551 | -8/Garrison | Phase Generator disabled 3645 | -8/Garrison | Triggered checkpoint 3656 | -8/Garrison | Garrison Relay disabled 3749 | -8/Garrison | P-60 Hacker assimilated allied Rogue 3b 3932 | -8/Garrison | Garrison Relay disabled 4071 | -8/Garrison | Triggered checkpoint 4129 | -8/Garrison | Destroyed 7 combat bots 4132 | -8/Garrison | Build established: Scavenger-Mutant 4211 | -8/Garrison | Garrison Relay disabled 4246 | -8/Garrison | Triggered checkpoint 4284 | -8/Garrison | Discovered new exit (range 12) 4347 | -8/Garrison | Discovered new exit (range 89) 4347 | -8/Garrison | Discovered new exit (range 11) 4347 | -8/Garrison | Discovered new exit (range 62) 4461 | -8/Garrison | Triggered checkpoint 4738 | -8/Garrison | Entered Materials 5330 | -8/Materials | Garrison activated, responded to threat 5422 | -8/Materials | Discovered exit to Factory (range 16) 5513 | -8/Materials | Identified exit to Garrison 5529 | -8/Materials | Build established: Mutant 5636 | -8/Materials | Learned location of Extension (-6) 5698 | -8/Materials | Identified exit to Storage 5717 | -8/Materials | Learned Storage stockpile data 5718 | -8/Materials | Learned Factory emergency access door positions 5722 | -8/Materials | Learned 2 Storage zone layouts 5831 | -8/Materials | Entered Garrison 5831 | -8/Garrison | Accompanied by 1 ally 5833 | -8/Garrison | Triggered checkpoint 5849 | -8/Garrison | Core integrity fell below 50% 5902 | -8/Garrison | Discovered new exit (range 6) 5983 | -8/Garrison | Triggered checkpoint 6028 | -8/Garrison | Garrison Relay disabled 6335 | -8/Garrison | Build established: Bothacker-Mutant 6536 | -8/Garrison | Core integrity fell below 20% 6559 | -8/Garrison | Lost 5 parts (1p1n2u1w) 6765 | -8/Garrison | Expanded RIF knowledge: Program Shield 6780 | -8/Garrison | Expanded RIF knowledge: Patrol Navigation 6785 | -8/Garrison | Discovered exit to Factory (range 10) 6794 | -8/Garrison | Entered Factory 6794 | -7/Factory | Evolved 2 slots: Propulsion x1, Utility x1 6795 | -7/Factory | Identified exit to Lower Caves 6796 | -7/Factory | FarCom data flow suspended 7089 | -7/Factory | Identified exit to Garrison 7089 | -7/Factory | Entered Garrison 7099 | -7/Garrison | Expanded RIF knowledge: Signal Jamming 7109 | -7/Garrison | Triggered checkpoint 7131 | -7/Garrison | Triggered checkpoint 7284 | -7/Garrison | Lost 4 parts (4n) 7315 | -7/Garrison | Rescued a captive Derelict 7316 | -7/Garrison | Rescued a captive Derelict 7345 | -7/Garrison | Expanded RIF knowledge: Zone Cloak 7347 | -7/Garrison | Discovered new exit (range 3) 7363 | -7/Garrison | Lost 4 parts (1p1n2w) 7374 | -7/Garrison | Entered Factory 7374 | -6/Factory | Accompanied by 2 allies 7374 | -6/Factory | Evolved 2 slots: Propulsion x1, Utility x1 7375 | -6/Factory | Identified exit to Lower Caves 7375 | -6/Factory | Identified exit to Extension 7677 | -6/Factory | Build established: Hauler-Mutant 7837 | -6/Factory | Lost 6 parts (1p4n1u) 8022 | -6/Factory | Cargo convoy interrupted 8031 | -6/Factory | Core integrity fell below 50% 8038 | -6/Factory | Core integrity fell below 20% 8040 | -6/Factory | Destroyed by H-66 Slayer with Gauss Rifle Last Messages --------------- 08032_ ECM Suite destroyed. 08032_ Penetrated by Slug. 08033_ U-05 Engineer lays Concrete. 08033_ Slug penetrates Wall. 08034_ U-05 Engineer lays Concrete. 08034_ Melee Analysis Suite destroyed. 08034_ Penetrated by Slug. 08034_ Slug penetrates H-66 Slayer. 08034_ Penetrated by Slug. 08034_ Slug penetrates X-67 Chaingunner. 08035_ U-05 Engineer lays Concrete. 08035_ Mni. Grenade Launcher destroyed. 08035_ X-62 Marksman destroyed. 08036_ U-05 Engineer lays Concrete. 08037_ Penetrated by Slug. 08037_ U-05 Engineer lays Concrete. 08038_ Penetrated by Slug. 08038_ Slug penetrates X-67 Chaingunner. 08038_ U-05 Engineer lays Concrete. 08039_ Penetrated by Slug. Map ----- +----------------------------------------------------+ | #????????????????????????????????######??????# | | #????????????????????????????????????????????# | | #????????????????????????????????????????????# | | #????????????????????????????????????????????# | | ##????????????????????????????????????????????# | | #????????????????????????????????????????????# | | #????????????????????????????????????????????# | | #????????????????????????????????????????????# | | #????????????????????????????????????????????# | | #????????????????????????? ????????????????# | | ##???????????????????????? #??????????????#### | | #?????????#?????#????????? #?????????????????? | | #?????????# ??? #????##### #?????????????????? | | #?????????# """ #????# #?????????????????? | | #?????????# #????# #?????????????????? | | #?????????# """ #????# +?????????????????? | | #?????????? """ ?????# #?????????????????? | | #########?? """ ###### #?????????????????? | | #??? ?+ ! #?????????????????? | | # #??? ?# % #?????????????????? | | # #####+### ??????????????????? | | + u % #???????????????????? | | ############ i hh #???????????????????? | | #???? # h! #????????????????????? | | #???? """" # xhx%h##????????????????????? | | #??? """" # ! @ ;#????????????????????? | | #???! """" + !% !; #??????????????????? | | #???! """" # ;;;####??????????????????? | | #???? """" # # #?????????????????????? | | #???? """"?# %%##### # #?????????????????????? | | #???? ?# *%#???###; ####?????????????????????? | | #????####??# =##? # #????????????????????????? | | ??????###### "## # ????????????????????????? | | ??????# + ####???????????????????????? | | #####+#### #??????????????????????????? | | ?????# # #??????????????????????????? | | ?????????# # #??????????????????????????? | | ??????????#* !# #??????????????????????????? | | ??????????# ! #??###??????????????????????????? | | ??????????# #???????????????????????????????? | | ??????????# #???????????????????????????????? | | ??????????########???????????????????????????????? | | ?????????????????????????????????????????????????? | | ?????????????????????????????????????????????????? | | ?????????????????????????????????????????????????? | | ?????????????????????????????????????????????????? | | ?????????????????????????????????????????????????? | | ?????????????????????????????????????????????????? | | ?????????????????????????????????????????????????? | | ?????????????????????????????????????????????????? | +----------------------------------------------------+ Best States ------------- Heat Dissipation 56 Energy Generation 18 Energy Capacity 160 Matter Stores 300 Matter Capacity 300 Sight Range 20 Terrain Scan Density 10 ECM Strength 1 Armor Coverage 300 Core Shielding 20 Weapon Shielding 90 Evasion (%) 63 Melee Accuracy 5 Target Analysis 5 Armor Integrity Analysis 30 Recoil Reduction 2 Force Boost 20 Offensive Hacking 10 Defensive Hacking 10 Relay Coupler Types 2 Relay Coupler Value 35 Authchip Count 9 Trap Extractor Capacity 4 Item Schematics ----------------- Trap Extractor | -8/Materials | Scanalyzed Robot Schematics ------------------ None Fabricated ------------ Nothing Repaired ---------- Nothing Studied --------- None Alien Tech Used ----------------- None Achievements -------------- Fitting Room That Tickles Challenges ------------ None Game ------ Seed FlyingElectronCleaver Manual? 0 Play Time 01:08:15 Cumulative 417.9 hours Start 2025.10.24 @ 19:20:14 End 2025.10.24 @ 20:44:49 Sessions 1 Manual Loads 0 Difficulty Rogue Special Mode None Game No. 543 Rogue 543 Adventurer 0 Explorer 0 Win Type - Total 12 Types 6/0/1/2/1/0/2/0/0/0 Lore% 89 Gallery% 83 Achievement% 51 Wizard Run 0 Options --------- Layout 0 ASCII 0 Keyboard 0 Movement Mouse Keybinds 0 Fullscreen 1 Font 24/Terminus Map View 76x50 Zoom Use 0% Tactical HUD 1 Map Filters NONE Filters NONE Steam 1 RUN: 7245441d-7332-40f0-b9d2-16e0a6b58250